[Event "Lueneburg Open-B 2019"]
[Site "Lueneburg"]
[Date "2019.08.08"]
[Round "6.8"]
[White "Kasipour Azbari, Seyed Arvin"]
[Black "Goldmann, David"]
[Result "0-1"]
[ECO "B40"]
[WhiteElo "1765"]
[BlackElo "1403"]
[Annotator "NA"]
[PlyCount "117"]
[EventDate "2019.08.03"]
[EventType "swiss"]
[EventCountry "GER"]
[SourceTitle "playchess.com"]
[Source "ChessBase"]
[SourceQuality "1"]
[TimeControl "40/5400+30:1800+30"]

1. e4 {[%emt 0:00:08]} c5 {[%emt 0:00:00]} 2. Nf3 {[%emt 0:00:05]} e6 {[%emt 0:00:00]} 3. d4 {[%emt 0:00:08]} cxd4 {[%emt 0:00:00]} 4. Nxd4 {[%emt 0:00:10]} Bc5 {[%emt 0:00:00]} 5. Nb3 {[%emt 0:00:59]} Bb6 {[%emt 1:32:30]} 6. Bd3 {[%emt 0:01:48]} Nc6 {[%emt 0:00:00]} 7. O-O {[%emt 0:01:40]} Nge7 {[%emt 0:00:00]} 8. Nc3 {[%emt 0:02:58]} O-O {[%emt 0:00:00]} 9. Kh1 {[%emt 0:02:03]} Ng6 {[%emt 0:00:00]} 10. f4 {[%emt 0:02:39]} d6 {[%emt 0:00:00]} 11. f5 {[%emt 0:02:11]} exf5 {[%emt 0:00:00]} 12. exf5 {[%emt 0:00:36]} Nge5 {[%emt 0:00:00]} 13. Nd5 {[%emt 0:12:27]} f6 {[%emt 0:00:00]} 14. Nxb6 {[%emt 0:03:07]} Qxb6 {[%emt 0:00:00]} 15. Qh5 {[%emt 0:03:10]} Nxd3 {[%emt 0:00:00]} 16. cxd3 {[%emt 0:00:34]} Ne5 {[%emt 0:00:00]} 17. d4 {[%emt 0:03:37]} Nc6 {[%emt 0:00:00]} 18. Rf3 {[%emt 0:06:29]} Ne7 {[%emt 0:00:00]} 19. Bd2 {[%emt 0:11:25]} Bxf5 {[%emt 0:00:00]} 20. Re1 {[%emt 0:02:59]} Bg6 {[%emt 0:00:00]} 21. Qh3 {[%emt 0:02:46]} Rfe8 {[%emt 0:00:00]} 22. Rfe3 {[%emt 0:01:47]} Kf8 {[%emt 0:00:00]} 23. Ba5 {[%emt 0:04:09]} Qc6 {[%emt 0:00:00]} 24. Rc3 {[%emt 0:02:59]} Qd5 {[%emt 0:00:00]} 25. Rc7 {[%emt 0:03:35]} b6 {[%emt 0:00:00]} 26. Bb4 {[%emt 0:01:38]} a5 {[%emt 0:00:00]} 27. Ba3 {[%emt 0:04:58]} b5 {[%emt 0:00:00]} 28. Nc5 {[%emt 0:04:46]} Bf5 {[%emt 0:00:00]} 29. Nd7+ {[%emt 0:03:29]} Bxd7 {[%emt 0:00:00]} 30. Qxd7 {[%emt 0:01:20]} Rad8 {[%emt 0:00:00]} 31. Qh3 {[%emt 0:00:12]} b4 {[%emt 0:00:00]} 32. Bxb4 {[%emt 0:02:40]} axb4 {[%emt 0:13:30]} 33. Qxh7 {[%emt 0:00:20]} Rc8 {[%emt 0:00:00]} 34. Rd7 {[%emt 0:04:41]} Qg8 {[%emt 0:00:00]} 35. Qh3 {[%emt 0:01:29]} Ng6 {[%emt 0:00:00]} 36. Qg3 {[%emt 0:01:59]} Rxe1+ {[%emt 0:00:00]} 37. Qxe1 {[%emt 0:00:09]} Qc4 {[%emt 0:00:00]} 38. h3 {[%emt 0:00:28]} Qc1 {[%emt 0:00:00]} 39. Qxc1 {[%emt 0:00:07]} Rxc1+ {[%emt 0:00:00]} 40. Kh2 {[%emt 0:00:04]} Rc2 {[%emt 0:00:00]} 41. Rxd6 {[%emt 0:30:08]} Rxb2 {[%emt 0:00:00]} 42. Rb6 {[%emt 0:00:26]} Rxa2 {[%emt 0:00:00]} 43. Rxb4 {[%emt 0:00:07]} Rd2 {[%emt 0:00:00]} 44. Kg3 {[%emt 0:00:25]} Ne7 {[%emt 0:00:00]} 45. Kf3 {[%emt 0:00:52]} Nc6 {[%emt 0:00:00]} 46. Rc4 {[%emt 0:00:31]} Ne7 {[%emt 0:00:00]} 47. g3 {[%emt 0:05:29]} Nf5 {[%emt 0:00:00]} 48. Rc8+ {[%emt 0:00:22]} Kf7 {[%emt 0:00:00]} 49. Rc7+ {[%emt 0:00:54]} Kg6 {[%emt 0:00:00]} 50. g4 {[%emt 0:02:02]} Nd6 {[%emt 0:00:00]} 51. Ke3 {[%emt 0:00:46]} Rh2 {[%emt 0:00:00]} 52. Rd7 {[%emt 0:00:30]} Nf7 {[%emt 0:00:00]} 53. d5 {[%emt 0:00:34]} Rxh3+ {[%emt 0:00:00]} 54. Ke4 {[%emt 0:00:33]} Rh4 {[%emt 0:00:00]} 55. d6 {[%emt 0:00:19]} Rxg4+ {[%emt 0:00:00]} 56. Kd5 {[%emt 0:00:06]} Rg1 {[%emt 0:00:00]} 57. Ke6 {[%emt 0:00:21]} Re1+ {[%emt 0:00:00]} 58. Kd5 {[%emt 0:00:02]} Nxd6 {[%emt 0:00:00]} 59. Kd4 {[%emt 0:02:14]} 0-1

[Event "Lueneburg Open-B 2019"]
[Site "Lueneburg"]
[Date "2019.08.08"]
[Round "6.9"]
[White "Gerdau, Niklas"]
[Black "Jessen, Bjarne"]
[Result "1-0"]
[ECO "D38"]
[WhiteElo "1704"]
[BlackElo "1569"]
[Annotator "NA"]
[PlyCount "79"]
[EventDate "2019.08.03"]
[EventType "swiss"]
[EventCountry "GER"]
[SourceTitle "playchess.com"]
[Source "ChessBase"]
[SourceQuality "1"]
[TimeControl "40/5400+30:1800+30"]

1. d4 {[%emt 0:00:00]} Nf6 {[%emt 0:00:00]} 2. c4 {[%emt 0:00:00]} e6 {[%emt 0:00:00]} 3. Nc3 {[%emt 0:00:00]} Bb4 {[%emt 0:00:00]} 4. Qc2 {[%emt 0:00:00]} O-O {[%emt 0:00:00]} 5. Nf3 {[%emt 0:00:03]} d5 {[%emt 0:00:51]} 6. Bg5 {[%emt 0:00:53]} Nbd7 {[%emt 0:06:06]} 7. e3 {[%emt 0:01:16]} c6 {[%emt 0:00:48]} 8. Bd3 {[%emt 0:02:11]} h6 {[%emt 0:03:27]} 9. Bh4 {[%emt 0:01:07]} Qa5 {[%emt 0:02:18]} 10. O-O {[%emt 0:00:25]} dxc4 {[%emt 0:02:31]} 11. Bxc4 {[%emt 0:00:08]} Bxc3 {[%emt 0:05:54]} 12. bxc3 {[%emt 0:00:45]} b5 {[%emt 0:01:07]} 13. Bd3 {[%emt 0:00:37]} Bb7 {[%emt 0:00:41]} 14. a4 {[%emt 0:00:41]} Nd5 {[%emt 0:02:17]} 15. axb5 {[%emt 0:00:48]} Qxc3 {[%emt 0:00:14]} 16. Qxc3 {[%emt 0:00:13]} Nxc3 {[%emt 0:00:06]} 17. bxc6 {[%emt 0:00:10]} Bxc6 {[%emt 0:00:18]} 18. Rfc1 {[%emt 0:01:03]} Bxf3 {[%emt 0:00:20]} 19. gxf3 {[%emt 0:00:42]} Nd5 {[%emt 0:00:36]} 20. Bb5 {[%emt 0:01:06]} N7f6 {[%emt 0:04:37]} 21. Bg3 {[%emt 0:01:04]} g5 {[%emt 0:02:28]} 22. Be5 {[%emt 0:07:27]} Kg7 {[%emt 0:00:23]} 23. Ba6 {[%emt 0:00:38]} Rad8 {[%emt 0:02:37]} 24. Bb7 {[%emt 0:03:02]} Nb4 {[%emt 0:01:07]} 25. Rab1 {[%emt 0:17:59]} Nd3 {[%emt 0:00:12]} 26. Bxf6+ {[%emt 0:00:11]} Kxf6 {[%emt 0:00:12]} 27. Rd1 {[%emt 0:01:30]} Nf4 {[%emt 0:01:06]} 28. exf4 {[%emt 0:00:05]} gxf4 {[%emt 0:00:16]} 29. d5 {[%emt 0:01:01]} Rg8+ {[%emt 0:00:35]} 30. Kf1 {[%emt 0:00:28]} exd5 {[%emt 0:01:08]} 31. Bxd5 {[%emt 0:00:45]} Rd6 {[%emt 0:01:03]} 32. Ba2 {[%emt 0:00:37]} Rgd8 {[%emt 0:01:16]} 33. Rxd6+ {[%emt 0:00:14]} Rxd6 {[%emt 0:00:16]} 34. Rb7 {[%emt 0:00:09]} Rd1+ {[%emt 0:01:01]} 35. Kg2 {[%emt 0:01:06]} a5 {[%emt 0:00:34]} 36. Rxf7+ {[%emt 0:00:09]} Kg5 {[%emt 0:00:05]} 37. Ra7 {[%emt 0:00:28]} Rd6 {[%emt 0:00:31]} 38. Rxa5+ {[%emt 0:00:08]} Kh4 {[%emt 0:00:06]} 39. Bf7 {[%emt 0:00:21]} h5 {[%emt 0:00:21]} 40. Rxh5# {[%emt 0:00:07]} 1-0

[Event "Lueneburg Open-B 2019"]
[Site "Lueneburg"]
[Date "2019.08.08"]
[Round "6.10"]
[White "Cordsen, Heinrich"]
[Black "Stolzenwald, Karl-Heinz"]
[Result "1/2-1/2"]
[ECO "B21"]
[WhiteElo "1685"]
[BlackElo "1600"]
[Annotator "NA"]
[PlyCount "87"]
[EventDate "2019.08.03"]
[EventType "swiss"]
[EventCountry "GER"]
[SourceTitle "playchess.com"]
[Source "ChessBase"]
[SourceQuality "1"]
[TimeControl "40/5400+30:1800+30"]

1. e4 {[%emt 0:00:00]} c5 {[%emt 0:01:24]} 2. f4 {[%emt 0:00:01]} d6 {[%emt 0:00:56]} 3. Bb5+ {[%emt 0:01:09]} Bd7 {[%emt 0:00:58]} 4. Bxd7+ {[%emt 0:00:08]} Nxd7 {[%emt 0:00:09]} 5. Nf3 {[%emt 0:00:06]} Ngf6 {[%emt 0:00:15]} 6. Nc3 {[%emt 0:01:09]} a6 {[%emt 0:00:15]} 7. O-O {[%emt 0:00:54]} e6 {[%emt 0:00:23]} 8. Qe2 {[%emt 0:06:35]} Be7 {[%emt 0:00:24]} 9. b3 {[%emt 0:01:32]} h6 {[%emt 0:01:12]} 10. Bb2 {[%emt 0:00:39]} O-O {[%emt 0:01:25]} 11. Rad1 {[%emt 0:13:44]} Qc7 {[%emt 0:00:28]} 12. Kh1 {[%emt 0:04:57]} Rfd8 {[%emt 0:01:46]} 13. d4 {[%emt 0:05:30]} cxd4 {[%emt 0:00:27]} 14. Rxd4 {[%emt 0:02:24]} b5 {[%emt 0:01:04]} 15. Rfd1 {[%emt 0:06:18]} Qc5 {[%emt 0:06:29]} 16. Nb1 {[%emt 0:12:30]} Qh5 {[%emt 0:03:26]} 17. Nc3 {[%emt 0:15:48]} e5 {[%emt 0:07:33]} 18. fxe5 {[%emt 0:00:35]} dxe5 {[%emt 0:00:27]} 19. R4d2 {[%emt 0:01:12]} Bc5 {[%emt 0:01:14]} 20. Nd5 {[%emt 0:02:50]} Ng4 {[%emt 0:00:29]} 21. Rf1 {[%emt 0:00:44]} Kh7 {[%emt 0:09:27]} 22. b4 {[%emt 0:04:13]} Ba7 {[%emt 0:03:22]} 23. Bc1 {[%emt 0:03:13]} Nb6 {[%emt 0:01:23]} 24. Ne7 {[%emt 0:06:58]} Nc4 {[%emt 0:01:44]} 25. Rxd8 {[%emt 0:00:33]} Rxd8 {[%emt 0:00:06]} 26. h3 {[%emt 0:00:49]} Nf6 {[%emt 0:12:55]} 27. Nc6 {[%emt 0:08:59]} Rd7 {[%emt 0:00:22]} 28. Kh2 {[%emt 0:00:00]} Bb6 {[%emt 0:01:36]} 29. g3 {[%emt 0:00:00]} Rd6 {[%emt 0:01:21]} 30. Ne7 {[%emt 0:00:00]} Ng4+ {[%emt 0:00:38]} 31. Kg2 {[%emt 0:00:00]} Nge3+ {[%emt 0:00:17]} 32. Bxe3 {[%emt 0:00:19]} Nxe3+ {[%emt 0:00:11]} 33. Kh2 {[%emt 0:00:44]} Nxf1+ {[%emt 0:00:15]} 34. Qxf1 {[%emt 0:00:04]} f6 {[%emt 0:04:03]} 35. g4 {[%emt 0:00:02]} Qe8 {[%emt 0:00:57]} 36. Nd5 {[%emt 0:00:16]} Qd8 {[%emt 0:00:41]} 37. Qd3 {[%emt 0:00:16]} Ba7 {[%emt 0:02:59]} 38. Nh4 {[%emt 0:00:20]} g6 {[%emt 0:02:03]} 39. Nf3 {[%emt 0:00:05]} h5 {[%emt 0:34:26]} 40. Kg3 {[%emt 0:00:43]} hxg4 {[%emt 0:00:00]} 41. hxg4 {[%emt 0:30:05]} Kg7 {[%emt 0:05:24]} 42. Qd2 {[%emt 0:02:36]} Bb8 {[%emt 0:01:38]} 43. Nh4 {[%emt 0:00:00]} f5 {[%emt 0:00:00]} 44. gxf5 {[%emt 0:03:00]} 1/2-1/2

[Event "Lueneburg Open-B 2019"]
[Site "Lueneburg"]
[Date "2019.08.08"]
[Round "6.11"]
[White "Geissler, Karl-Heinz"]
[Black "Krause, Holger"]
[Result "1/2-1/2"]
[ECO "A54"]
[WhiteElo "1581"]
[BlackElo "1639"]
[Annotator "NA"]
[PlyCount "39"]
[EventDate "2019.08.03"]
[EventType "swiss"]
[EventCountry "GER"]
[SourceTitle "playchess.com"]
[Source "ChessBase"]
[SourceQuality "1"]
[TimeControl "40/5400+30:1800+30"]

1. d4 {[%emt 0:00:00]} Nf6 {[%emt 0:00:00]} 2. c4 {[%emt 0:00:00]} d6 {[%emt 0:00:00]} 3. Nc3 {[%emt 0:00:00]} Nbd7 {[%emt 0:00:00]} 4. Nf3 {[%emt 0:00:41]} e5 {[%emt 0:00:12]} 5. e3 {[%emt 0:01:11]} Be7 {[%emt 0:00:45]} 6. Bd3 {[%emt 0:00:57]} O-O {[%emt 0:01:33]} 7. O-O {[%emt 0:02:04]} c6 {[%emt 0:01:21]} 8. e4 {[%emt 0:01:48]} a6 {[%emt 0:03:57]} 9. d5 {[%emt 0:01:21]} cxd5 {[%emt 0:01:24]} 10. cxd5 {[%emt 0:01:03]} b5 {[%emt 0:05:05]} 11. b3 {[%emt 0:00:57]} Nc5 {[%emt 0:01:39]} 12. Bb1 {[%emt 0:02:19]} b4 {[%emt 0:04:21]} 13. Ne2 {[%emt 0:12:47]} Ncxe4 {[%emt 0:03:22]} 14. Nd2 {[%emt 0:01:05]} Nc5 {[%emt 0:04:06]} 15. Nc4 {[%emt 0:01:13]} Bb7 {[%emt 0:03:10]} 16. Ng3 {[%emt 0:01:18]} Nxd5 {[%emt 0:02:14]} 17. Nf5 {[%emt 0:09:07]} Nf6 {[%emt 0:11:42]} 18. Nxe7+ {[%emt 0:03:36]} Qxe7 {[%emt 0:00:23]} 19. Qxd6 {[%emt 0:00:15]} Qxd6 {[%emt 0:00:35]} 20. Nxd6 {[%emt 0:58:18]} 1/2-1/2

[Event "Lueneburg Open-B 2019"]
[Site "Lueneburg"]
[Date "2019.08.08"]
[Round "6.12"]
[White "Rempe, Janne"]
[Black "Martin, David"]
[Result "1/2-1/2"]
[ECO "A48"]
[WhiteElo "1594"]
[BlackElo "1494"]
[Annotator "NA"]
[PlyCount "54"]
[EventDate "2019.08.03"]
[EventType "swiss"]
[EventCountry "GER"]
[SourceTitle "playchess.com"]
[Source "ChessBase"]
[SourceQuality "1"]
[TimeControl "40/5400+30:1800+30"]

1. d4 {[%emt 0:00:00]} Nf6 {[%emt 0:00:00]} 2. Nf3 {[%emt 0:00:00]} d6 {[%emt 0:00:00]} 3. Bf4 {[%emt 0:00:00]} g6 {[%emt 0:00:25]} 4. h3 {[%emt 0:00:22]} Bg7 {[%emt 0:00:25]} 5. e3 {[%emt 0:00:27]} O-O {[%emt 0:00:42]} 6. c3 {[%emt 0:00:06]} b6 {[%emt 0:01:42]} 7. Nbd2 {[%emt 0:00:37]} Bb7 {[%emt 0:01:46]} 8. Be2 {[%emt 0:01:20]} Nbd7 {[%emt 0:01:01]} 9. O-O {[%emt 0:00:39]} c5 {[%emt 0:01:55]} 10. Re1 {[%emt 0:01:18]} Nh5 {[%emt 0:02:33]} 11. Bh2 {[%emt 0:01:19]} d5 {[%emt 0:05:00]} 12. Ne5 {[%emt 0:03:00]} Nhf6 {[%emt 0:04:45]} 13. h4 {[%emt 0:01:22]} Bc8 {[%emt 0:08:29]} 14. g4 {[%emt 0:01:34]} Nxe5 {[%emt 0:02:27]} 15. dxe5 {[%emt 0:01:32]} Nd7 {[%emt 0:01:21]} 16. f4 {[%emt 0:01:14]} e6 {[%emt 0:01:10]} 17. Nf3 {[%emt 0:01:35]} f6 {[%emt 0:03:35]} 18. h5 {[%emt 0:05:15]} fxe5 {[%emt 0:02:39]} 19. hxg6 {[%emt 0:00:39]} hxg6 {[%emt 0:01:11]} 20. fxe5 {[%emt 0:00:31]} Bb7 {[%emt 0:03:39]} 21. Bf4 {[%emt 0:01:42]} d4 {[%emt 0:02:05]} 22. Ng5 {[%emt 0:01:54]} dxe3 {[%emt 0:07:07]} 23. Bc4 {[%emt 0:05:55]} Rxf4 {[%emt 0:01:45]} 24. Nxe6 {[%emt 0:00:37]} Qh4 {[%emt 0:03:20]} 25. Nxf4+ {[%emt 0:00:11]} Kh7 {[%emt 0:00:22]} 26. Bd5 {[%emt 0:02:12]} Qf2+ {[%emt 0:02:53]} 27. Kh1 {[%emt 0:00:14]} Qh4+ {[%emt 0:41:13]} 1/2-1/2

[Event "Lueneburg Open-B 2019"]
[Site "Lueneburg"]
[Date "2019.08.08"]
[Round "6.13"]
[White "Levink, Clemens"]
[Black "Thomas, Vincent"]
[Result "1/2-1/2"]
[ECO "C00"]
[WhiteElo "1719"]
[BlackElo "1975"]
[Annotator "NA"]
[PlyCount "29"]
[EventDate "2019.08.03"]
[EventType "swiss"]
[EventCountry "GER"]
[SourceTitle "playchess.com"]
[Source "ChessBase"]
[SourceQuality "1"]
[TimeControl "40/5400+30:1800+30"]

1. e4 {[%emt 0:00:00]} e6 {[%emt 0:00:37]} 2. e5 {[%emt 0:00:00]} d5 {[%emt 0:01:26]} 3. exd6 {[%emt 0:00:00]} Bxd6 {[%emt 0:01:23]} 4. d4 {[%emt 0:00:15]} Nf6 {[%emt 0:01:40]} 5. Nf3 {[%emt 0:00:26]} O-O {[%emt 0:02:44]} 6. Be2 {[%emt 0:00:31]} b6 {[%emt 0:02:41]} 7. c3 {[%emt 0:01:46]} Bb7 {[%emt 0:05:10]} 8. O-O {[%emt 0:01:42]} c5 {[%emt 0:03:14]} 9. Bg5 {[%emt 0:03:45]} cxd4 {[%emt 0:04:42]} 10. Nxd4 {[%emt 0:02:40]} Be7 {[%emt 0:04:12]} 11. Bf3 {[%emt 0:08:53]} Nd5 {[%emt 0:05:37]} 12. Bxe7 {[%emt 0:02:29]} Qxe7 {[%emt 0:01:10]} 13. Nd2 {[%emt 0:07:10]} Nf4 {[%emt 0:06:33]} 14. Bxb7 {[%emt 0:01:16]} Qxb7 {[%emt 0:00:09]} 15. Qf3 {[%emt 0:00:10]} 1/2-1/2

[Event "Lueneburg Open-B 2019"]
[Site "Lueneburg"]
[Date "2019.08.08"]
[Round "6.14"]
[White "Schencke, Guenther"]
[Black "Schulze, Tim"]
[Result "1/2-1/2"]
[ECO "D35"]
[WhiteElo "1668"]
[BlackElo "1481"]
[Annotator "NA"]
[PlyCount "69"]
[EventDate "2019.08.03"]
[EventType "swiss"]
[EventCountry "GER"]
[SourceTitle "playchess.com"]
[Source "ChessBase"]
[SourceQuality "1"]
[TimeControl "40/5400+30:1800+30"]

1. d4 {[%emt 0:00:00]} Nf6 {[%emt 0:00:00]} 2. Nf3 {[%emt 0:00:00]} d5 {[%emt 0:00:00]} 3. c4 {[%emt 0:00:00]} e6 {[%emt 0:00:05]} 4. Nc3 {[%emt 0:00:28]} Be7 {[%emt 0:00:50]} 5. cxd5 {[%emt 0:00:11]} exd5 {[%emt 0:00:06]} 6. Bf4 {[%emt 0:01:09]} c6 {[%emt 0:00:11]} 7. e3 {[%emt 0:00:04]} O-O {[%emt 0:00:11]} 8. Bd3 {[%emt 0:00:05]} Bg4 {[%emt 0:00:29]} 9. Qb3 {[%emt 0:01:11]} Qb6 {[%emt 0:06:43]} 10. Nd2 {[%emt 0:08:22]} Nbd7 {[%emt 0:02:04]} 11. h3 {[%emt 0:00:32]} Bh5 {[%emt 0:00:57]} 12. Rc1 {[%emt 0:00:33]} Bg6 {[%emt 0:03:32]} 13. Bxg6 {[%emt 0:02:42]} fxg6 {[%emt 0:00:14]} 14. O-O {[%emt 0:01:02]} Rae8 {[%emt 0:07:07]} 15. Qc2 {[%emt 0:02:24]} Nh5 {[%emt 0:03:39]} 16. Bh2 {[%emt 0:02:10]} Kh8 {[%emt 0:00:39]} 17. Rce1 {[%emt 0:06:23]} Nhf6 {[%emt 0:06:04]} 18. Na4 {[%emt 0:02:13]} Qd8 {[%emt 0:03:00]} 19. Nc3 {[%emt 0:02:03]} Qb6 {[%emt 0:01:18]} 20. Nf3 {[%emt 0:01:55]} Bd8 {[%emt 0:03:50]} 21. Na4 {[%emt 0:09:42]} Qa5 {[%emt 0:01:47]} 22. Bd6 {[%emt 0:01:02]} Be7 {[%emt 0:01:21]} 23. Bxe7 {[%emt 0:02:00]} Rxe7 {[%emt 0:00:09]} 24. Nc5 {[%emt 0:07:05]} Nxc5 {[%emt 0:03:31]} 25. Qxc5 {[%emt 0:00:49]} Qxc5 {[%emt 0:01:33]} 26. dxc5 {[%emt 0:00:02]} Ne4 {[%emt 0:00:20]} 27. b4 {[%emt 0:04:29]} Rxf3 {[%emt 0:02:21]} 28. gxf3 {[%emt 0:00:03]} Nd2 {[%emt 0:00:06]} 29. Kg2 {[%emt 0:01:19]} Nxf1 {[%emt 0:52:23]} 30. Kxf1 {[%emt 0:02:56]} Kg8 {[%emt 0:00:00]} 31. e4 {[%emt 0:00:58]} Kf7 {[%emt 0:00:00]} 32. Kg2 {[%emt 0:02:49]} Kf6 {[%emt 0:00:00]} 33. Kg3 {[%emt 0:00:54]} g5 {[%emt 0:00:00]} 34. Re3 {[%emt 0:02:59]} a6 {[%emt 0:00:00]} 35. a3 {[%emt 0:09:14]} 1/2-1/2

[Event "Lueneburg Open-B 2019"]
[Site "Lueneburg"]
[Date "2019.08.08"]
[Round "6.15"]
[White "Mi, Gufeng"]
[Black "Ramme, Georg"]
[Result "1/2-1/2"]
[ECO "D00"]
[WhiteElo "1564"]
[BlackElo "1660"]
[Annotator "NA"]
[PlyCount "130"]
[EventDate "2019.08.03"]
[EventType "swiss"]
[EventCountry "GER"]
[SourceTitle "playchess.com"]
[Source "ChessBase"]
[SourceQuality "1"]
[TimeControl "40/5400+30:1800+30"]

1. d4 {[%emt 0:00:00]} Nf6 {[%emt 0:00:00]} 2. Bf4 {[%emt 0:00:00]} d5 {[%emt 0:00:26]} 3. h3 {[%emt 0:00:06]} Bf5 {[%emt 0:01:01]} 4. e3 {[%emt 0:00:15]} c6 {[%emt 0:00:52]} 5. Nf3 {[%emt 0:00:28]} Nbd7 {[%emt 0:00:59]} 6. c4 {[%emt 0:00:40]} Qa5+ {[%emt 0:03:51]} 7. Nc3 {[%emt 0:00:47]} Ne4 {[%emt 0:01:23]} 8. Qb3 {[%emt 0:02:11]} Qb6 {[%emt 0:16:58]} 9. cxd5 {[%emt 0:03:58]} Qxb3 {[%emt 0:00:56]} 10. axb3 {[%emt 0:00:09]} e6 {[%emt 0:04:29]} 11. dxe6 {[%emt 0:03:22]} fxe6 {[%emt 0:01:32]} 12. Be2 {[%emt 0:01:22]} Bb4 {[%emt 0:01:34]} 13. Rc1 {[%emt 0:00:44]} O-O {[%emt 0:03:24]} 14. O-O {[%emt 0:00:53]} h6 {[%emt 0:02:23]} 15. Ne5 {[%emt 0:06:53]} Nxe5 {[%emt 0:08:10]} 16. Bxe5 {[%emt 0:00:39]} Nd2 {[%emt 0:00:13]} 17. Rfd1 {[%emt 0:02:28]} Nxb3 {[%emt 0:00:21]} 18. Bc4 {[%emt 0:04:17]} Nxc1 {[%emt 0:04:23]} 19. Rxc1 {[%emt 0:02:39]} Rae8 {[%emt 0:02:19]} 20. Ne2 {[%emt 0:02:44]} g5 {[%emt 0:03:55]} 21. Ng3 {[%emt 0:01:18]} Bg6 {[%emt 0:00:34]} 22. Ra1 {[%emt 0:04:57]} a6 {[%emt 0:00:26]} 23. Ne2 {[%emt 0:01:16]} Kh7 {[%emt 0:03:12]} 24. Nc1 {[%emt 0:01:12]} Rf7 {[%emt 0:09:50]} 25. Na2 {[%emt 0:04:09]} Bf8 {[%emt 0:02:09]} 26. Nc3 {[%emt 0:01:52]} Bg7 {[%emt 0:00:59]} 27. Bg3 {[%emt 0:02:04]} Rd7 {[%emt 0:01:35]} 28. Bb3 {[%emt 0:01:22]} h5 {[%emt 0:06:24]} 29. Na4 {[%emt 0:01:06]} Bf8 {[%emt 0:03:26]} 30. Nb6 {[%emt 0:01:16]} Rf7 {[%emt 0:01:01]} 31. Nc4 {[%emt 0:01:18]} h4 {[%emt 0:02:31]} 32. Be5 {[%emt 0:01:12]} Be4 {[%emt 0:02:03]} 33. Nd2 {[%emt 0:02:04]} Bd5 {[%emt 0:00:18]} 34. Bc2+ {[%emt 0:00:37]} Kh6 {[%emt 0:00:25]} 35. e4 {[%emt 0:00:56]} Bb4 {[%emt 0:01:35]} 36. Nf1 {[%emt 0:02:26]} Bc4 {[%emt 0:00:50]} 37. Ne3 {[%emt 0:01:06]} Be2 {[%emt 0:02:11]} 38. f3 {[%emt 0:01:11]} Ref8 {[%emt 0:04:01]} 39. Ng4+ {[%emt 0:01:01]} Kh5 {[%emt 0:00:25]} 40. Bb3 {[%emt 0:01:39]} Re8 {[%emt 0:02:48]} 41. Kf2 {[%emt 0:30:29]} Bd3 {[%emt 0:30:44]} 42. Nf6+ {[%emt 0:04:13]} Rxf6 {[%emt 0:00:11]} 43. Bxf6 {[%emt 0:00:06]} Kg6 {[%emt 0:01:47]} 44. Be5 {[%emt 0:00:16]} c5 {[%emt 0:01:52]} 45. d5 {[%emt 0:02:06]} c4 {[%emt 0:00:53]} 46. Ba4 {[%emt 0:03:59]} b5 {[%emt 0:00:16]} 47. Bd1 {[%emt 0:00:21]} Bc5+ {[%emt 0:01:16]} 48. Ke1 {[%emt 0:01:08]} Bb4+ {[%emt 0:00:00]} 49. Kf2 {[%emt 0:00:00]} a5 {[%emt 0:00:00]} 50. dxe6 {[%emt 0:00:00]} Rxe6 {[%emt 0:00:00]} 51. Bd4 {[%emt 0:00:00]} a4 {[%emt 0:00:00]} 52. Ke3 {[%emt 0:00:00]} Bd6 {[%emt 0:00:00]} 53. Be2 {[%emt 0:00:00]} Bf4+ {[%emt 0:00:00]} 54. Kf2 {[%emt 0:00:00]} Bxe2 {[%emt 0:00:00]} 55. Kxe2 {[%emt 0:00:00]} Rd6 {[%emt 0:00:00]} 56. Bc3 {[%emt 0:00:00]} Rd3 {[%emt 0:00:00]} 57. Rd1 {[%emt 0:00:00]} Rxd1 {[%emt 0:00:00]} 58. Kxd1 {[%emt 0:00:00]} Bd6 {[%emt 0:00:00]} 59. Kc2 {[%emt 0:00:00]} Kf7 {[%emt 0:00:00]} 60. Bd2 {[%emt 0:00:00]} Be7 {[%emt 0:00:00]} 61. Kc3 {[%emt 0:00:00]} Bf6+ {[%emt 0:00:00]} 62. Kc2 {[%emt 0:00:00]} Be7 {[%emt 0:00:00]} 63. Kc3 {[%emt 0:00:00]} Bf6+ {[%emt 0:00:00]} 64. Kc2 {[%emt 0:00:00]} Be7 {[%emt 0:00:00]} 65. Kc3 {[%emt 0:00:00]} Bf6+ {[%emt 0:09:39] f4} 1/2-1/2

[Event "Lueneburg Open-B 2019"]
[Site "Lueneburg"]
[Date "2019.08.08"]
[Round "6.16"]
[White "Kolhoff, Manfred"]
[Black "Rothenberg, Anke"]
[Result "1-0"]
[ECO "B13"]
[WhiteElo "1616"]
[BlackElo "1467"]
[Annotator "NA"]
[PlyCount "45"]
[EventDate "2019.08.03"]
[EventType "swiss"]
[EventCountry "GER"]
[SourceTitle "playchess.com"]
[Source "ChessBase"]
[SourceQuality "1"]
[TimeControl "40/5400+30:1800+30"]

1. e4 {[%emt 0:00:00]} c6 {[%emt 0:00:00]} 2. Nf3 {[%emt 1:31:00]} d5 {[%emt 0:00:00]} 3. exd5 {[%emt 0:00:00]} cxd5 {[%emt 0:00:29]} 4. d4 {[%emt 0:00:00]} Bg4 {[%emt 0:00:34]} 5. Bd3 {[%emt 0:00:00]} Nc6 {[%emt 0:00:59]} 6. c3 {[%emt 0:00:00]} Nf6 {[%emt 0:04:24]} 7. Bf4 {[%emt 0:00:00]} e6 {[%emt 0:02:59]} 8. Nbd2 {[%emt 0:00:00]} Be7 {[%emt 0:02:29]} 9. Qb3 {[%emt 0:00:00]} b6 {[%emt 0:06:19]} 10. Bb5 {[%emt 0:00:00]} Rc8 {[%emt 0:03:33]} 11. Qa4 {[%emt 0:00:00]} O-O {[%emt 0:11:28]} 12. Bxc6 {[%emt 0:00:00]} Rxc6 {[%emt 0:02:08]} 13. Qxc6 {[%emt 0:00:00]} h6 {[%emt 0:04:31]} 14. Ne5 {[%emt 0:00:00]} Bf5 {[%emt 0:02:59]} 15. h3 {[%emt 0:00:00]} Ne4 {[%emt 0:06:43]} 16. Qa4 {[%emt 0:00:00]} f6 {[%emt 0:06:28]} 17. Nc6 {[%emt 0:00:00]} Qe8 {[%emt 0:00:20]} 18. Nxe7+ {[%emt 0:00:00]} Qxe7 {[%emt 0:00:44]} 19. Nxe4 {[%emt 0:00:00]} Bxe4 {[%emt 0:01:16]} 20. f3 {[%emt 0:00:00]} Bd3 {[%emt 0:01:05]} 21. Kd2 {[%emt 0:00:00]} e5 {[%emt 0:03:00]} 22. Rae1 {[%emt 0:00:00]} Bg6 {[%emt 0:01:18]} 23. dxe5 {[%emt 0:00:00]} 1-0